[Event "FIDE World Rapid-ch Open 2018"]
[White "Sanikidze, Tornike"]
[Black "Moiseenko, Vadim"]
[Site "St. Petersburg"]
[Round "6.67"]
[Annotator "ChessBase"]
[Result "1-0"]
[Date "2018.12.27"]
[WhiteElo "2507"]
[BlackElo "2501"]
[PlyCount "115"]
[TimeControl "900+10"]

1. d4 {[%emt 0:0:0]} d5 {[%emt 0:0:0]} 2. c4 {[%emt 0:0:0]} dxc4 {[%emt 0:0:0]
} 3. e4 {[%emt 0:0:0]} e5 {[%emt 0:0:28]} 4. Nf3 {[%emt 0:0:0]} exd4 {[%emt 0:0:8]} 5. Bxc4 {[%emt 0:0:9]} Bb4+ {[%emt 0:0:13]} 6. Nbd2 {[%emt 0:0:11]} Nc6 {[%emt 0:0:4]} 7. 0-0 {[%emt 0:0:40]} Qf6 {[%emt 0:1:5]
} 8. e5 {[%emt 0:3:44]} Qf5 {[%emt 0:0:3]} 9. Nh4 {[%emt 0:0:0]} Qg4 {[%emt 0:0:5]} 10. Ndf3 {[%emt 0:0:1]} Nh6 {[%emt 0:1:45]} 11. h3 {[%emt 0:3:14]} Qh5 {[%emt 0:0:3]} 12. Bg5 {[%emt 0:1:33]} 0-0 {[%emt 0:0:0]} 13. Qc1 {[%emt 0:1:51]} Kh8 {[%emt 0:5:18]} 14. Qf4 {[%emt 0:0:7]} f6 {[%emt 0:0:40]} 15. exf6 {[%emt 0:0:10]} Bd6 {[%emt 0:0:5]} 16. Qd2 {[%emt 0:1:42]
} Rxf6 {[%emt 0:2:45]} 17. Bxf6 {[%emt 0:1:34]} gxf6 {[%emt 0:0:0]} 18. a3 {[%emt 0:0:4]} b5 {[%emt 0:0:5]} 19. Bd3 {[%emt 0:1:45]} Bd7 {[%emt 0:1:11]} 20. Be4 {[%emt 0:0:8]} Rg8 {[%emt 0:0:2]} 21. Kh1 {[%emt 0:0:0]
} Nf7 {[%emt 0:1:2]} 22. Bxc6 {[%emt 0:0:39]} Bxc6 {[%emt 0:0:0]} 23. Qxd4 {[%emt 0:0:1]} Ne5 {[%emt 0:0:10]} 24. Rac1 {[%emt 0:0:1]
} Bb7 25. Rfe1 Rg7 {[%emt 0:1:2]} 26. Re3 {[%emt 0:0:32]} a6 {[%emt 0:0:4]
} 27. Rce1 {[%emt 0:0:5]} h6 {[%emt 0:0:28]} 28. b4 Kh7 {[%emt 0:0:8]} 29. Nxe5 {[%emt 0:0:23]} fxe5 {[%emt 0:0:14]} 30. Qd3+ {[%emt 0:0:17]} Kh8 {[%emt 0:0:10]
} 31. Nf3 {[%emt 0:0:5]} Re7 {[%emt 0:0:18]} 32. Kg1 {[%emt 0:0:0]} Rg7 {[%emt 0:0:1]} 33. Rxe5 {[%emt 0:0:10]} Bxe5 {[%emt 0:0:10]} 34. Rxe5 {[%emt 0:0:1]} Qf7 {[%emt 0:0:11]} 35. Kf1 {[%emt 0:0:15]} Rg8 {[%emt 0:0:14]
} 36. Qe3 {[%emt 0:0:13]} Qg7 {[%emt 0:0:6]} 37. Ke1 {[%emt 0:0:0]} Qg6 {[%emt 0:0:15]} 38. Nd2 {[%emt 0:0:10]} Bc8 {[%emt 0:0:10]} 39. Re7 {[%emt 0:0:8]} Qd6 {[%emt 0:0:12]} 40. Re8 {[%emt 0:0:11]} Bf5 {[%emt 0:0:8]
} 41. Qc3+ {[%emt 0:0:14]} Kh7 {[%emt 0:0:2]} 42. Rxg8 {[%emt 0:0:2]
} Kxg8 {[%emt 0:0:0]} 43. Qb3+ {[%emt 0:0:16]} Kf8 {[%emt 0:0:0]} 44. Qf3 {[%emt 0:0:4]} Qe5+ {[%emt 0:0:8]} 45. Kf1 {[%emt 0:0:3]} Ke7 {[%emt 0:0:12]} 46. g4 {[%emt 0:0:2]} Be6 {[%emt 0:0:6]} 47. Qc6 {[%emt 0:0:30]
} Bd5 {[%emt 0:0:24]} 48. Qxh6 {[%emt 0:0:7]} Qa1+ {[%emt 0:0:0]} 49. Ke2 {[%emt 0:0:1]} Qxa3 {[%emt 0:0:16]} 50. Qe3+ {[%emt 0:0:6]
} Qxe3+ 51. Kxe3 Kd6 {[%emt 0:0:12]} 52. Ne4+ {[%emt 0:0:10]} Kc6 {[%emt 0:0:0]} 53. h4 {[%emt 0:0:21]} a5 {[%emt 0:0:1]} 54. bxa5 {[%emt 0:0:4]} b4 {[%emt 0:0:1]} 55. h5 {[%emt 0:0:10]} Kb5 {[%emt 0:0:17]} 56. h6 {[%emt 0:0:25]
} Bg8 {[%emt 0:0:1]} 57. Nf6 {[%emt 0:0:6]} b3 {[%emt 0:0:0]} 58. Kd2 {[%emt 0:0:1]} 1-0

[Event "FIDE World Rapid-ch Open 2018"]
[White "Yuffa, Daniil"]
[Black "Vlassov, Nikolai"]
[Site "St. Petersburg"]
[Round "6.68"]
[Annotator "ChessBase"]
[Result "1-0"]
[Date "2018.12.27"]
[WhiteElo "2572"]
[BlackElo "2401"]
[PlyCount "103"]
[TimeControl "900+10"]

1. e4 {[%emt 0:3:6]} c5 {[%emt 0:0:0]} 2. Nf3 {[%emt 0:0:7]} d6 {[%emt 0:0:0]} 3. d4 {[%emt 0:0:3]} cxd4 {[%emt 0:0:0]} 4. Nxd4 {[%emt 0:0:1]} Nf6 {[%emt 0:0:0]} 5. Nc3 {[%emt 0:0:1]} g6 {[%emt 0:0:0]} 6. Be3 {[%emt 0:0:42]
} Bg7 {[%emt 0:0:0]} 7. Qd2 {[%emt 0:0:1]} Ng4 {[%emt 0:0:0]} 8. Bb5+ {[%emt 0:0:24]} Bd7 {[%emt 0:0:12]} 9. Bg5 {[%emt 0:2:17]} h6 {[%emt 0:0:3]
} 10. Bh4 {[%emt 0:0:16]} Nc6 {[%emt 0:0:2]} 11. Nb3 {[%emt 0:0:0]} Rc8 {[%emt 0:1:28]} 12. 0-0 {[%emt 0:0:27]} Nce5 {[%emt 0:2:2]} 13. a4 {[%emt 0:2:12]} 0-0 {[%emt 0:1:12]} 14. Qe2 {[%emt 0:2:13]} Be6 {[%emt 0:0:0]} 15. Nd4 {[%emt 0:1:24]} Bc4 {[%emt 0:3:35]} 16. Bxc4 {[%emt 0:0:2]} Rxc4 {[%emt 0:0:2]} 17. Rad1 {[%emt 0:0:5]} Qb6 {[%emt 0:1:42]} 18. Nb3 {[%emt 0:0:20]
} Rxc3 {[%emt 0:2:46]} 19. bxc3 {[%emt 0:0:5]} Nf6 {[%emt 0:0:0]} 20. Kh1 {[%emt 0:0:25]} Qc6 {[%emt 0:0:8]} 21. f4 {[%emt 0:0:29]} Nc4 {[%emt 0:0:19]} 22. Nd4 {[%emt 0:0:38]} Qc5 {[%emt 0:0:27]} 23. Rb1 {[%emt 0:0:31]
} Nxe4 {[%emt 0:1:19]} 24. Qxe4 {[%emt 0:0:19]} Nd2 {[%emt 0:0:0]} 25. Qxb7 {[%emt 0:0:44]} Nxf1 {[%emt 0:0:16]} 26. Rxf1 {[%emt 0:0:0]} Qxc3 {[%emt 0:0:2]} 27. Ne2 {[%emt 0:0:26]} Qxc2 {[%emt 0:0:31]} 28. Qxe7 {[%emt 0:0:6]} Qxa4 {[%emt 0:0:7]} 29. Qxd6 {[%emt 0:0:37]} Qc4 {[%emt 0:0:27]
} 30. Qd1 {[%emt 0:0:23]} Re8 {[%emt 0:0:2]} 31. Ng1 {[%emt 0:0:0]} a5 {[%emt 0:0:8]} 32. Bg3 {[%emt 0:0:13]} a4 {[%emt 0:0:3]} 33. f5 {[%emt 0:0:11]} gxf5 {[%emt 0:0:3]} 34. Rf4 {[%emt 0:0:10]} Re4 {[%emt 0:0:0]} 35. Rxf5 {[%emt 0:0:5]} a3 {[%emt 0:0:7]} 36. Qd8+ {[%emt 0:0:29]} Kh7 {[%emt 0:0:2]} 37. Qa8 {[%emt 0:0:5]} Re3 {[%emt 0:0:57]} 38. Ra5 {[%emt 0:0:12]
} Bd4 {[%emt 0:0:26]} 39. Bf2 {[%emt 0:0:15]} Rd3 {[%emt 0:0:0]} 40. Qe4+ {[%emt 0:0:3]} Kg7 {[%emt 0:0:3]} 41. Bxd4+ {[%emt 0:0:5]} Rxd4 {[%emt 0:0:1]} 42. Qe5+ {[%emt 0:0:4]} Kh7 {[%emt 0:0:3]} 43. Rxa3 {[%emt 0:0:8]
} Rd1 {[%emt 0:0:1]} 44. Qf5+ {[%emt 0:0:10]} Kh8 {[%emt 0:0:0]} 45. Ra8+ {[%emt 0:0:12]} Kg7 {[%emt 0:0:1]} 46. Qe5+ {[%emt 0:0:4]} Kh7 {[%emt 0:0:14]} 47. Rh8+ {[%emt 0:0:15]} Kg6 {[%emt 0:0:1]} 48. Qg3+ {[%emt 0:0:1]
} Kf6 {[%emt 0:0:16]} 49. Rxh6+ {[%emt 0:0:13]} Ke7 {[%emt 0:0:0]} 50. Qe3+ {[%emt 0:0:19]} Kf8 {[%emt 0:0:15]} 51. Rh8+ {[%emt 0:0:3]
} Kg7 {[%emt 0:0:1]} 52. Qh6# {[%emt 0:0:2]} 1-0

[Event "FIDE World Rapid-ch Open 2018"]
[White "Belyakov, Bogdan"]
[Black "Zvjaginsev, Vadim"]
[Site "St. Petersburg"]
[Round "6.69"]
[Annotator "ChessBase"]
[Result "0-1"]
[Date "2018.12.27"]
[WhiteElo "2459"]
[BlackElo "2642"]
[PlyCount "106"]
[TimeControl "900+10"]

1. e4 {[%emt 0:0:0]} c5 {[%emt 0:0:0]} 2. c3 {[%emt 0:0:0]} e6 {[%emt 0:0:0]} 3. d4 {[%emt 0:0:3]} d5 {[%emt 0:0:0]} 4. exd5 {[%emt 0:0:5]} exd5 {[%emt 0:0:0]} 5. Be3 {[%emt 0:0:2]} cxd4 {[%emt 0:0:22]} 6. Bxd4 {[%emt 0:0:3]
} a6 {[%emt 0:0:8]} 7. Bd3 {[%emt 0:2:58]} Nc6 {[%emt 0:0:9]
} 8. Ne2 {[%emt 0:0:2]} Nf6 {[%emt 0:0:23]} 9. 0-0 {[%emt 0:0:6]} Bd6 {[%emt 0:0:17]
} 10. Nd2 {[%emt 0:0:9]} 0-0 {[%emt 0:0:16]} 11. h3 {[%emt 0:0:0]} Re8 {[%emt 0:1:51]} 12. Qc2 {[%emt 0:0:22]} g6 {[%emt 0:0:43]} 13. Rfe1 {[%emt 0:0:31]} Bd7 {[%emt 0:0:13]} 14. Nf3 {[%emt 0:0:20]} Nxd4 {[%emt 0:0:44]
} 15. Nexd4 {[%emt 0:0:14]} Qc7 {[%emt 0:0:23]} 16. Rxe8+ {[%emt 0:0:41]
} Rxe8 {[%emt 0:0:2]} 17. Re1 {[%emt 0:0:4]} Rxe1+ {[%emt 0:0:0]} 18. Nxe1 {[%emt 0:0:3]} Bc5 {[%emt 0:1:16]} 19. Nef3 {[%emt 0:0:28]
} Qf4 {[%emt 0:0:5]} 20. Qd2 {[%emt 0:0:13]} Bd6 {[%emt 0:1:11]} 21. Qxf4 {[%emt 0:1:10]
} Bxf4 {[%emt 0:0:1]} 22. Ne2 {[%emt 0:0:3]} Bh6 {[%emt 0:0:0]} 23. Ne5 {[%emt 0:1:30]} Be8 {[%emt 0:0:32]} 24. f4 {[%emt 0:0:45]} Nh5 {[%emt 0:0:56]} 25. g3 {[%emt 0:0:17]} Nxg3 {[%emt 0:0:25]} 26. Nxg3 {[%emt 0:1:17]
} Bxf4 {[%emt 0:0:2]} 27. Ng4 {[%emt 0:1:21]} Bxg3 {[%emt 0:0:0]} 28. Nf6+ {[%emt 0:0:16]} Kf8 {[%emt 0:0:2]} 29. Nxe8 {[%emt 0:0:2]
} Kxe8 {[%emt 0:0:1]} 30. c4 {[%emt 0:0:0]} dxc4 {[%emt 0:1:32]} 31. Bxc4 {[%emt 0:0:2]} Ke7 {[%emt 0:1:3]} 32. Kg2 {[%emt 0:0:5]} Be5 {[%emt 0:0:0]} 33. b4 {[%emt 0:0:9]} Bc3 {[%emt 0:0:34]} 34. Bd5 {[%emt 0:0:12]} b6 {[%emt 0:0:6]
} 35. Bb7 {[%emt 0:0:4]} Bxb4 {[%emt 0:0:4]} 36. Bxa6 {[%emt 0:0:1]
} f5 {[%emt 0:0:2]} 37. Kf3 {[%emt 0:0:36]} Kf6 {[%emt 0:0:0]} 38. Bb5 {[%emt 0:0:3]} Kg5 {[%emt 0:0:10]} 39. Be8 {[%emt 0:0:11]} Ba3 {[%emt 0:0:21]} 40. Kg3 {[%emt 0:0:7]} Bd6+ {[%emt 0:0:7]} 41. Kf3 {[%emt 0:0:2]
} Kf6 {[%emt 0:1:8]} 42. Kg2 {[%emt 0:1:2]} g5 {[%emt 0:0:0]} 43. Kf3 {[%emt 0:0:23]} Bc7 {[%emt 0:0:1]} 44. a4 {[%emt 0:0:40]} Bb8 {[%emt 0:0:1]} 45. Ke3 {[%emt 0:4:45]} g4 {[%emt 0:0:9]} 46. Kd4 {[%emt 0:0:0]} Kg5 {[%emt 0:0:55]} 47. Ke3 {[%emt 0:0:19]} h5 {[%emt 0:0:28]} 48. Kf2 {[%emt 0:0:11]} Bd6 {[%emt 0:0:14]} 49. Kg2 {[%emt 0:0:3]} f4 {[%emt 0:0:0]} 50. Kf2 {[%emt 0:0:11]} Bc5+ {[%emt 0:0:6]} 51. Kg2 {[%emt 0:0:2]} f3+ {[%emt 0:0:2]} 52. Kh2 {[%emt 0:0:29]} Bd6+ {[%emt 0:0:1]} 53. Kg1 {[%emt 0:0:9]
} g3 {[%emt 0:0:2]} 0-1

[Event "FIDE World Rapid-ch Open 2018"]
[White "Huzman, Alexander"]
[Black "Drygalov, Andrey"]
[Site "St. Petersburg"]
[Round "6.70"]
[Annotator "ChessBase"]
[Result "1-0"]
[Date "2018.12.27"]
[WhiteElo "2580"]
[BlackElo "2481"]
[PlyCount "141"]
[TimeControl "900+10"]

1. Nf3 {[%emt 0:0:0]} d5 {[%emt 0:0:0]} 2. e3 {[%emt 0:0:6]} Nf6 {[%emt 0:0:19]
} 3. c4 {[%emt 0:0:5]} c6 {[%emt 0:0:5]} 4. d4 {[%emt 0:0:0]} Bf5 {[%emt 0:0:2]} 5. Nc3 {[%emt 0:0:14]} e6 {[%emt 0:0:2]} 6. Nh4 {[%emt 0:0:3]
} Be4 {[%emt 0:0:1]} 7. f3 {[%emt 0:0:22]} Bg6 {[%emt 0:0:2]
} 8. Qb3 {[%emt 0:0:2]} Qc7 {[%emt 0:0:1]} 9. Bd2 {[%emt 0:0:48]} Be7 {[%emt 0:0:3]
} 10. g3 {[%emt 0:0:45]} a6 {[%emt 0:0:2]} 11. a4 {[%emt 0:0:0]} Bh5 {[%emt 0:3:30]} 12. Kf2 {[%emt 0:0:3]} g5 {[%emt 0:1:8]} 13. Ng2 {[%emt 0:0:7]} Bg6 {[%emt 0:0:7]} 14. Be2 {[%emt 0:1:54]} h5 {[%emt 0:0:0]} 15. Rac1 {[%emt 0:1:42]} dxc4 {[%emt 0:5:17]} 16. Qxc4 {[%emt 0:0:47]} Nbd7 {[%emt 0:0:55]} 17. e4 {[%emt 0:1:12]} e5 {[%emt 0:0:43]} 18. d5 {[%emt 0:0:45]
} c5 {[%emt 0:3:30]} 19. Be3 {[%emt 0:0:38]} Qd6 {[%emt 0:0:0]} 20. a5 {[%emt 0:1:13]} 0-0 {[%emt 0:0:12]} 21. Ne1 {[%emt 0:0:46]} g4 {[%emt 0:0:18]
} 22. h3 {[%emt 0:0:43]} gxf3 {[%emt 0:0:4]} 23. Bxf3 {[%emt 0:0:1]
} b5 {[%emt 0:0:6]} 24. axb6 {[%emt 0:0:1]} Nxb6 {[%emt 0:0:0]} 25. Qe2 {[%emt 0:0:11]} c4 {[%emt 0:0:26]} 26. Ng2 {[%emt 0:0:19]} Nfd7 {[%emt 0:0:19]} 27. Bxh5 {[%emt 0:1:2]} f5 {[%emt 0:0:1]} 28. Bxg6 {[%emt 0:0:35]
} Qxg6 {[%emt 0:0:5]} 29. exf5 {[%emt 0:0:24]} Rxf5+ {[%emt 0:0:0]} 30. Kg1 {[%emt 0:0:1]} Qxg3 {[%emt 0:0:7]} 31. Qg4+ {[%emt 0:0:1]
} Qxg4 {[%emt 0:0:9]} 32. hxg4 {[%emt 0:0:0]} Rf3 {[%emt 0:0:12]} 33. Rh6 {[%emt 0:0:36]} Rb8 {[%emt 0:0:10]} 34. Rf1 {[%emt 0:0:35]} Rxf1+ {[%emt 0:0:0]} 35. Kxf1 {[%emt 0:0:1]} Bb4 {[%emt 0:0:7]} 36. Bxb6 {[%emt 0:1:46]
} Rxb6 {[%emt 0:0:26]} 37. Rc6 {[%emt 0:0:7]} Bxc3 {[%emt 0:0:15]} 38. bxc3 {[%emt 0:0:2]} Rb3 {[%emt 0:0:6]} 39. Rxc4 {[%emt 0:0:13]} Nb6 {[%emt 0:0:0]} 40. Rc5 {[%emt 0:0:5]} a5 {[%emt 0:0:17]} 41. Rxa5 {[%emt 0:0:24]} Rxc3 {[%emt 0:0:1]} 42. Nh4 {[%emt 0:0:1]} Kf7 {[%emt 0:0:23]} 43. Nf5 {[%emt 0:0:5]
} Rf3+ {[%emt 0:0:8]} 44. Ke2 {[%emt 0:0:11]} Rf4 {[%emt 0:0:0]} 45. Ra7+ {[%emt 0:0:1]} Kf8 {[%emt 0:0:5]} 46. d6 {[%emt 0:0:6]} Rxg4 {[%emt 0:0:21]} 47. Rb7 {[%emt 0:0:1]} Rf4 {[%emt 0:0:8]} 48. Rxb6 {[%emt 0:0:4]
} Ke8 {[%emt 0:0:1]} 49. Rb8+ {[%emt 0:0:46]} Kd7 {[%emt 0:0:0]} 50. Rb7+ {[%emt 0:0:0]} Kd8 {[%emt 0:0:19]} 51. Ne7 {[%emt 0:0:45]} Rc4 {[%emt 0:0:2]} 52. Ke3 {[%emt 0:0:5]} e4 {[%emt 0:0:25]} 53. Nf5 {[%emt 0:0:11]
} Kc8 {[%emt 0:0:6]} 54. Re7 {[%emt 0:0:6]} Kd8 {[%emt 0:0:0]} 55. Rxe4 {[%emt 0:0:9]} Rc5 {[%emt 0:0:2]} 56. Kf4 {[%emt 0:0:1]} Rc1 {[%emt 0:0:8]} 57. Kg5 {[%emt 0:0:6]} Rf1 {[%emt 0:0:6]} 58. Kf6 {[%emt 0:0:4]
} Kd7 {[%emt 0:0:2]} 59. Re7+ {[%emt 0:0:1]} Kd8 {[%emt 0:0:0]} 60. Ra7 {[%emt 0:0:3]} Rf2 {[%emt 0:0:5]} 61. Ke6 {[%emt 0:0:17]} Re2+ {[%emt 0:0:1]} 62. Kd5 {[%emt 0:0:1]} Rd2+ {[%emt 0:0:1]} 63. Nd4 {[%emt 0:0:1]
} Rd1 {[%emt 0:0:1]} 64. Ra4 {[%emt 0:0:18]} Kd7 {[%emt 0:0:0]} 65. Kc5 {[%emt 0:0:2]} Rc1+ {[%emt 0:0:3]} 66. Kd5 {[%emt 0:0:1]} Rd1 {[%emt 0:0:2]} 67. Ra7+ {[%emt 0:0:36]} Kd8 {[%emt 0:0:2]} 68. d7 {[%emt 0:0:13]
} Ke7 {[%emt 0:0:26]} 69. Ke4 {[%emt 0:0:7]} Re1+ {[%emt 0:0:0]} 70. Kf3 {[%emt 0:0:1]} Rc1 {[%emt 0:0:2]} 71. Ne6 {[%emt 0:0:9]} 1-0

[Event "FIDE World Rapid-ch Open 2018"]
[White "Kobo, Ori"]
[Black "Tukhaev, Adam"]
[Site "St. Petersburg"]
[Round "6.71"]
[Annotator "ChessBase"]
[Result "1/2-1/2"]
[Date "2018.12.27"]
[WhiteElo "2494"]
[BlackElo "2527"]
[PlyCount "107"]
[TimeControl "900+10"]

1. Nf3 Nf6 2. g3 g6 3. b3 Bg7 4. Bb2 d6 5. d4 0-0 6. Bg2 a5 7. c4 a4 8. 0-0 axb3 9. axb3 Rxa1 10. Bxa1 c6 11. Nbd2 Qa5 12. e4 Bg4 13. Qc2 Nfd7 14. Bc3 Qc7 15. h3 Bxf3 16. Nxf3 Na6 17. Ra1 e5 18. Qd2 exd4 19. Nxd4 Re8 20. Rd1 Nac5 21. Qc2 Qb6 22. Kh2 Ne6 23. Nxe6 Rxe6 24. Be1 h5 25. f4 h4 26. gxh4 Qe3 27. Bg3 Nc5 28. e5 dxe5 29. f5 Rf6 30. b4 Na6 31. b5 Nc5 32. bxc6 bxc6 33. Re1 Qd3 34. Qf2 Qxc4 35. Rxe5 Rxf5 36. Rxf5 gxf5 37. Qxf5 Ne6 38. h5 Qe2 39. Qg4 Qxg4 40. hxg4 c5 41. Bd5 Ng5 42. Kg2 Kh7 43. Kf1 Bd4 44. Ke2 Kh6 45. Bd6 f5 46. Bf8+ Bg7 47. Bxg7+ Kxg7 48. gxf5 Kf6 49. Be6 Nxe6 50. fxe6 Kxe6 51. h6 Kf6 52. Kd3 Kg6 53. Kc4 Kxh6 54. Kxc5 1/2-1/2

[Event "FIDE World Rapid-ch Open 2018"]
[White "Sanal, Vahap"]
[Black "Tregubov, Pavel V."]
[Site "St. Petersburg"]
[Round "6.72"]
[Annotator "ChessBase"]
[Result "1-0"]
[Date "2018.12.27"]
[WhiteElo "2490"]
[BlackElo "2592"]
[PlyCount "167"]
[TimeControl "900+10"]

1. e4 {[%emt 0:0:0]} e6 {[%emt 0:0:0]} 2. d4 {[%emt 0:0:0]} d5 {[%emt 0:0:0]} 3. Nd2 {[%emt 0:0:0]} c5 {[%emt 0:0:0]} 4. Ngf3 {[%emt 0:0:0]} Nc6 {[%emt 0:0:3]} 5. exd5 {[%emt 0:0:19]} exd5 {[%emt 0:0:2]} 6. Bb5 {[%emt 0:0:9]
} Qe7+ {[%emt 0:0:2]} 7. Be2 {[%emt 0:0:11]} Qc7 {[%emt 0:0:0]} 8. 0-0 {[%emt 0:0:6]} Nf6 {[%emt 0:0:2]} 9. Re1 {[%emt 0:0:23]} cxd4 {[%emt 0:0:8]} 10. Nb3 {[%emt 0:0:28]} Bb4 {[%emt 0:0:3]} 11. Bd2 {[%emt 0:0:11]
} Bxd2 {[%emt 0:0:3]} 12. Qxd2 {[%emt 0:0:7]} 0-0 {[%emt 0:0:0]} 13. Bd3 {[%emt 0:2:26]} Bd7 {[%emt 0:1:48]} 14. Nbxd4 {[%emt 0:0:15]
} Rae8 {[%emt 0:0:38]} 15. c3 {[%emt 0:1:25]} Na5 {[%emt 0:2:28]} 16. Qc2 {[%emt 0:2:23]
} Nc4 {[%emt 0:0:28]} 17. h3 {[%emt 0:1:37]} g6 {[%emt 0:0:5]
} 18. Rad1 {[%emt 0:1:15]} a6 {[%emt 0:0:15]} 19. Qc1 {[%emt 0:1:24]} Kg7 {[%emt 0:0:36]
} 20. Nc2 {[%emt 0:0:37]} b5 {[%emt 0:2:16]} 21. Nfd4 {[%emt 0:0:0]} Qb6 {[%emt 0:1:50]} 22. Ne3 {[%emt 0:0:16]} Rc8 {[%emt 0:2:17]} 23. Be2 {[%emt 0:1:25]} b4 {[%emt 0:0:58]} 24. Bxc4 {[%emt 0:0:6]} dxc4 {[%emt 0:0:4]
} 25. cxb4 {[%emt 0:0:3]} Ba4 {[%emt 0:1:11]} 26. Ndf5+ {[%emt 0:1:0]
} Kh8 {[%emt 0:1:0]} 27. Rd6 {[%emt 0:0:50]} Rc6 {[%emt 0:0:0]} 28. Rxc6 {[%emt 0:1:21]} Qxc6 {[%emt 0:0:39]} 29. Ne7 {[%emt 0:0:3]} Qd6 {[%emt 0:1:31]} 30. Qc3 {[%emt 0:0:11]} Qxe7 {[%emt 0:1:12]} 31. Nd5 {[%emt 0:0:5]
} Qd6 {[%emt 0:0:2]} 32. Nxf6 {[%emt 0:0:4]} Rd8 {[%emt 0:0:0]} 33. Nd5+ {[%emt 0:0:35]} f6 {[%emt 0:0:2]} 34. Nxf6 {[%emt 0:0:7]} Qd4 {[%emt 0:0:1]} 35. Qxd4 {[%emt 0:0:14]} Rxd4 {[%emt 0:0:1]} 36. Re7 {[%emt 0:0:1]
} Rh4 {[%emt 0:0:2]} 37. Kh2 {[%emt 0:0:16]} g5 {[%emt 0:0:0]} 38. Ng4 {[%emt 0:0:15]} Bc2 {[%emt 0:0:26]} 39. Rc7 {[%emt 0:0:16]} Bd3 {[%emt 0:0:20]} 40. Rc6 {[%emt 0:0:13]} Bf5 {[%emt 0:0:25]} 41. Rxc4 {[%emt 0:0:16]
} Be6 {[%emt 0:0:11]} 42. Re4 {[%emt 0:0:12]} Bxa2 {[%emt 0:0:0]} 43. g3 {[%emt 0:0:4]} Rh5 {[%emt 0:0:1]} 44. Re7 {[%emt 0:0:7]} Bb1 {[%emt 0:0:13]} 45. Re5 {[%emt 0:0:11]} Kg7 {[%emt 0:0:5]} 46. Kg2 {[%emt 0:0:14]
} Bd3 {[%emt 0:0:10]} 47. f3 {[%emt 0:0:3]} Bb5 {[%emt 0:0:0]} 48. Rd5 Kf7 {[%emt 0:0:22]} 49. Rd6 {[%emt 0:0:17]} Ke7 {[%emt 0:0:10]} 50. Rb6 {[%emt 0:0:1]} Kf7 {[%emt 0:0:19]} 51. b3 {[%emt 0:0:14]} Kg7 {[%emt 0:0:7]
} 52. Rf6 {[%emt 0:0:9]} Bd3 {[%emt 0:0:12]} 53. Rc6 {[%emt 0:0:0]} Bb5 {[%emt 0:0:2]} 54. Rd6 {[%emt 0:0:2]} Kf7 {[%emt 0:0:3]} 55. Rb6 {[%emt 0:0:11]} Kg7 {[%emt 0:0:12]} 56. Ne3 {[%emt 0:0:5]} g4 {[%emt 0:0:0]} 57. hxg4 {[%emt 0:0:2]} Re5 {[%emt 0:0:1]} 58. Kf2 {[%emt 0:0:1]} Kf7 {[%emt 0:0:9]} 59. Rd6 {[%emt 0:0:7]} Re8 {[%emt 0:0:7]} 60. Rd4 {[%emt 0:0:5]
} Re6 {[%emt 0:0:6]} 61. g5 {[%emt 0:0:3]} Rc6 {[%emt 0:0:0]} 62. Nc4 {[%emt 0:0:1]} Kg7 {[%emt 0:0:14]} 63. g4 {[%emt 0:0:2]} Re6 {[%emt 0:0:8]} 64. Kg3 {[%emt 0:0:3]} Re1 {[%emt 0:0:5]} 65. Nd6 {[%emt 0:0:4]
} Bc6 {[%emt 0:0:9]} 66. Nf5+ {[%emt 0:0:5]} Kf7 {[%emt 0:0:0]} 67. Rd6 {[%emt 0:0:1]} Bb5 {[%emt 0:0:2]} 68. Rf6+ {[%emt 0:0:3]} Kg8 {[%emt 0:0:3]} 69. Nh6+ {[%emt 0:0:4]} Kg7 {[%emt 0:0:1]} 70. Nf5+ {[%emt 0:0:6]
} Kg8 {[%emt 0:0:1]} 71. f4 {[%emt 0:0:15]} Rg1+ {[%emt 0:0:0]} 72. Kf3 {[%emt 0:0:4]} Rf1+ {[%emt 0:0:2]} 73. Ke3 {[%emt 0:0:3]} Rb1 {[%emt 0:0:7]} 74. Nd4 {[%emt 0:0:25]} Bd7 {[%emt 0:0:21]} 75. f5 {[%emt 0:0:4]
} Re1+ {[%emt 0:0:2]} 76. Kf4 {[%emt 0:0:3]} Rf1+ {[%emt 0:0:0]} 77. Ke5 {[%emt 0:0:2]} Re1+ {[%emt 0:0:17]} 78. Kd5 {[%emt 0:0:2]} Rg1 {[%emt 0:0:13]} 79. Rxa6 {[%emt 0:0:3]} Rxg4 {[%emt 0:0:11]} 80. Ra8+ {[%emt 0:0:9]
} Kf7 {[%emt 0:0:1]} 81. Ra7 {[%emt 0:0:1]} Ke8 {[%emt 0:0:0]} 82. Ne6 {[%emt 0:0:7]} Rxb4 {[%emt 0:1:6]} 83. Ra8+ {[%emt 0:0:4]} Kf7 {[%emt 0:0:8]} 84. Rf8+ {[%emt 0:0:6]} 1-0

[Event "FIDE World Rapid-ch Open 2018"]
[White "Gasanov, Eldar"]
[Black "Dzhumagaliev, Yan"]
[Site "St. Petersburg"]
[Round "6.73"]
[Annotator "ChessBase"]
[Result "1/2-1/2"]
[Date "2018.12.27"]
[WhiteElo "2499"]
[BlackElo "2410"]
[PlyCount "92"]
[TimeControl "900+10"]

1. d4 {[%emt 0:0:0]} Nf6 {[%emt 0:0:0]} 2. c4 {[%emt 0:0:11]} e6 {[%emt 0:0:0]} 3. Nc3 {[%emt 0:0:5]} d5 {[%emt 0:0:4]} 4. Bg5 {[%emt 0:0:18]} Be7 {[%emt 0:1:0]} 5. e3 {[%emt 0:0:7]} 0-0 {[%emt 0:0:51]} 6. Nf3 {[%emt 0:0:0]} h6 {[%emt 0:0:28]} 7. Bh4 {[%emt 0:0:14]} b6 {[%emt 0:0:45]} 8. Rb1 {[%emt 0:0:25]} Bb7 {[%emt 0:0:15]} 9. Bxf6 {[%emt 0:0:10]} Bxf6 {[%emt 0:0:0]} 10. cxd5 {[%emt 0:0:4]} exd5 {[%emt 0:1:9]} 11. b4 {[%emt 0:0:4]} Nd7 {[%emt 0:0:4]} 12. Qb3 {[%emt 0:1:5]} c6 {[%emt 0:0:5]} 13. Bd3 {[%emt 0:1:22]
} a5 {[%emt 0:0:17]} 14. a3 {[%emt 0:1:19]} axb4 {[%emt 0:0:0]} 15. axb4 {[%emt 0:0:2]} b5 {[%emt 0:0:1]} 16. 0-0 {[%emt 0:1:19]} Nb6 {[%emt 0:0:4]} 17. e4 {[%emt 0:0:16]} Nc4 {[%emt 0:2:35]} 18. e5 {[%emt 0:0:0]} Be7 {[%emt 0:0:8]} 19. Ra1 {[%emt 0:0:9]} Qb6 {[%emt 0:0:28]} 20. Bf5 {[%emt 0:0:48]} Rxa1 {[%emt 0:1:4]} 21. Rxa1 {[%emt 0:0:2]} Bc8 {[%emt 0:0:2]
} 22. g4 {[%emt 0:3:20]} Be6 {[%emt 0:3:14]} 23. Ne2 {[%emt 0:0:0]} Qb7 {[%emt 0:0:7]} 24. Nf4 {[%emt 0:0:33]} Bxf5 {[%emt 0:0:3]} 25. gxf5 {[%emt 0:0:1]} Ra8 {[%emt 0:0:1]} 26. Rxa8+ {[%emt 0:0:58]} Qxa8 {[%emt 0:0:0]
} 27. e6 {[%emt 0:0:30]} Qa4 {[%emt 0:2:55]} 28. exf7+ {[%emt 0:0:47]
} Kxf7 29. Qd3 Qxb4 {[%emt 0:0:35]} 30. Qc2 {[%emt 0:1:21]} Bf6 {[%emt 0:2:20]} 31. Ng6 {[%emt 0:0:25]} Qb2 {[%emt 0:0:47]} 32. Qd3 {[%emt 0:0:16]
} b4 {[%emt 0:0:12]} 33. Nfe5+ {[%emt 0:0:24]} Bxe5 {[%emt 0:0:0]} 34. dxe5 {[%emt 0:0:2]} Nxe5 {[%emt 0:0:13]} 35. Qe3 {[%emt 0:0:4]
} Nxg6 {[%emt 0:0:33]} 36. Qe6+ {[%emt 0:0:3]} Kf8 {[%emt 0:0:1]} 37. Qc8+ {[%emt 0:0:27]} Ke7 {[%emt 0:0:0]} 38. Qe6+ {[%emt 0:0:4]} Kf8 {[%emt 0:0:0]} 39. Qc8+ {[%emt 0:0:4]} Ke7 {[%emt 0:0:0]} 40. Qe6+ {[%emt 0:0:2]
} Kd8 {[%emt 0:0:15]} 41. Qd6+ {[%emt 0:0:10]} Kc8 {[%emt 0:0:14]} 42. Qxc6+ {[%emt 0:0:4]} Kb8 {[%emt 0:0:0]} 43. Qb6+ Ka8 44. Qa6+ {[%emt 0:0:20]} Kb8 {[%emt 0:0:1]} 45. Qb6+ {[%emt 0:0:1]} Kc8 {[%emt 0:0:4]} 46. Qc6+ {[%emt 0:0:2]
} Kb8 {[%emt 0:0:21]} 1/2-1/2

[Event "FIDE World Rapid-ch Open 2018"]
[White "Sharma, Dinesh K."]
[Black "Gabrielian, Artur"]
[Site "St. Petersburg"]
[Round "6.74"]
[Annotator "ChessBase"]
[Result "1/2-1/2"]
[Date "2018.12.27"]
[WhiteElo "2295"]
[BlackElo "2499"]
[PlyCount "125"]
[TimeControl "900+10"]

1. Nf3 c5 2. c4 Nc6 3. Nc3 e5 4. e3 Nf6 5. d4 e4 6. Ne5 g6 7. g4 h6 8. Bg2 Bg7 9. h3 Qe7 10. Nxc6 dxc6 11. 0-0 0-0 12. Qc2 Re8 13. b3 h5 14. g5 Nh7 15. Qxe4 Qd8 16. Qh4 Nxg5 17. Kh1 cxd4 18. exd4 Ne6 19. Qxd8 Rxd8 20. Be3 Nxd4 21. Rad1 Bf5 22. Ne4 Bxe4 23. Bxe4 Ne6 24. b4 Bd4 25. Bd2 Rd7 26. Kg2 Rad8 27. Bc1 a6 28. a4 Bf6 29. Rxd7 Rxd7 30. b5 axb5 31. axb5 Rd4 32. bxc6 Rxe4 33. cxb7 Be5 34. Bb2 Bb8 35. Ra1 Nc5 36. Ra8 Re8 37. Be5 Nd7 38. Bxb8 Nxb8 39. c5 Kf8 40. Rxb8 Rxb8 41. c6 Kg7 42. c7 Rxb7 43. c8=Q Re7 44. Qc3+ Kg8 45. Kf3 Re6 46. Kf4 Kh7 47. f3 Kg8 48. Kg5 Kh7 49. h4 Rb6 50. Kf4 Rb5 51. Qf6 Kg8 52. Ke4 Rc5 53. Kd4 Rb5 54. Kc4 Rf5 55. Qxf5 gxf5 56. f4 Kf8 57. Kd5 Ke7 58. Ke5 f6+ 59. Kd5 Kd7 60. Kc5 Kc7 61. Kd5 Kd7 62. Kc5 Kc7 63. Kd5 1/2-1/2